bitfinex/quotes_BTCUSD_20251104
["timestamp","ask_amount","ask_price","bid_price","bid_amount"]
[1762278660004,0.00100063,101410.0,101400.0,0.37441105]
[1762278660228,0.00400063,101410.0,101400.0,0.37541105]
[1762278660935,0.00400063,101410.0,101400.0,0.21802105]
[1762278661172,0.87396909,101410.0,101400.0,0.14854105]
[1762278661387,0.87396909,101410.0,101400.0,0.050775]
[1762278661620,1.26015136,101410.0,101400.0,0.050815]
[1762278661854,1.25015137,101410.0,101400.0,0.050815]
[1762278662316,1.45737056,101410.0,101400.0,0.050815]
[1762278662535,1.47695457,101410.0,101400.0,0.049815]
[1762278662982,1.47895457,101410.0,101400.0,0.050815]
[1762278663240,1.47495457,101410.0,101400.0,0.049815]
[1762278663464,1.26873538,101410.0,101400.0,0.049815]
[1762278663675,1.27973537,101410.0,101400.0,0.049815]
[1762278663821,1.27873537,101410.0,101400.0,0.049815]
[1762278664384,1.45537056,101410.0,101400.0,0.050815]
[1762278664603,1.475939,101410.0,101400.0,0.050815]
[1762278664805,0.20712391,101390.0,101360.0,0.09776605]
[1762278665005,0.82053846,101370.0,101360.0,0.09825079]
[1762278665430,0.04999,101370.0,101360.0,0.09825079]
[1762278665585,0.82151846,101370.0,101360.0,0.09825079]
[1762278665785,0.82151846,101370.0,101360.0,0.00048474]
[1762278666200,0.83151845,101370.0,101360.0,0.00148474]
[1762278666385,0.83151845,101370.0,101360.0,0.00548474]
[1762278666582,0.04618227,101360.0,101350.0,4e-05]
[1762278666769,1.06986611,101360.0,101350.0,4e-05]
[1762278666974,0.34999999,101350.0,101330.0,0.0002]
[1762278667176,0.04901,101340.0,101330.0,0.0002]
[1762278667398,0.35097999,101350.0,101330.0,0.0002]
[1762278667399,0.34,101350.0,101330.0,0.0002]
[1762278667604,0.34098,101350.0,101340.0,0.09776605]
[1762278667809,0.34,101350.0,101340.0,0.09776605]
[1762278669106,0.341,101350.0,101340.0,0.09976605]
[1762278670215,0.001,101350.0,101340.0,0.25694605]
[1762278670444,0.004,101350.0,101340.0,0.25694605]
[1762278670650,0.005,101350.0,101340.0,0.09976605]
[1762278670891,0.00549,101350.0,101340.0,0.09976605]
[1762278671112,0.82602846,101350.0,101340.0,0.09976605]
[1762278671317,1.16602846,101350.0,101340.0,0.09976605]
[1762278671750,1.16602846,101350.0,101340.0,0.002]
[1762278671965,0.34,101340.0,101330.0,0.0002]
[1762278672173,1.17102845,101340.0,101330.0,0.0002]
[1762278672384,1.40456616,101340.0,101330.0,0.0002]
[1762278672595,1.40456616,101340.0,101300.0,4e-05]
[1762278672596,1.11152846,101310.0,101300.0,4e-05]
[1762278672812,1.11201846,101310.0,101300.0,4e-05]
[1762278673012,1.16196846,101310.0,101300.0,4e-05]
[1762278673748,1.16196846,101310.0,101300.0,0.00018578]
[1762278674168,0.34349,101310.0,101300.0,0.00018578]
[1762278674369,0.39344,101310.0,101300.0,0.00018578]
[1762278674626,0.343,101310.0,101300.0,0.00018578]
[1762278675291,0.39444,101310.0,101300.0,0.00118578]
[1762278675468,0.344,101310.0,101300.0,0.00118578]
[1762278676573,0.004,101310.0,101300.0,0.00118578]
[1762278677307,0.004,101310.0,101300.0,0.40088914]
[1762278677743,0.004,101310.0,101300.0,0.20345578]
[1762278678201,0.004,101310.0,101300.0,0.40088914]
[1762278678449,0.004,101310.0,101300.0,1.21859987]
[1762278678656,0.003,101310.0,101300.0,1.21759987]
[1762278678882,0.004,101310.0,101300.0,1.22059987]
[1762278679526,0.004,101310.0,101300.0,1.58874686]
[1762278679743,0.40130017,101360.0,101320.0,0.00986971]
[1762278679956,0.06130017,101360.0,101350.0,0.09776605]
[1762278680161,0.01252017,101360.0,101350.0,0.14592605]
[1762278680373,0.09967,101360.0,101350.0,0.09776605]
[1762278680601,0.8834752,101360.0,101350.0,0.09776605]
[1762278680834,1.23347519,101360.0,101330.0,0.14264605]
[1762278681060,1.16191846,101340.0,101330.0,0.14264605]
[1762278681483,0.39039,101340.0,101330.0,0.14264605]
[1762278681945,1.17241845,101340.0,101330.0,0.09776605]
[1762278682320,1.17341845,101340.0,101330.0,0.09876605]
[1762278682537,0.83341845,101340.0,101330.0,0.09876605]
[1762278682859,0.83341845,101340.0,101330.0,0.10176605]
[1762278683201,0.83241845,101340.0,101330.0,0.10076605]
[1762278683402,0.83241845,101340.0,101330.0,0.09776605]
[1762278683637,0.83241845,101340.0,101310.0,0.14264605]
[1762278683841,1.16142846,101320.0,101310.0,0.09776605]
[1762278684278,1.17319845,101320.0,101310.0,0.09776605]
[1762278684481,1.16319846,101320.0,101310.0,0.09776605]
[1762278684859,0.39167,101320.0,101310.0,0.09776605]
[1762278685065,0.39167,101320.0,101310.0,0.09791183]
[1762278685066,1.16319846,101320.0,101310.0,0.09791183]
[1762278685764,1.16419846,101320.0,101310.0,0.09991183]
[1762278687359,0.341,101320.0,101310.0,0.09991183]
[1762278687979,0.39268,101320.0,101310.0,0.09991183]
[1762278688352,0.341,101320.0,101310.0,0.09991183]
[1762278688557,0.39217,101320.0,101310.0,0.09991183]
[1762278688761,0.39268,101320.0,101310.0,0.09991183]
[1762278688976,1.16420846,101320.0,101310.0,0.09991183]
[1762278689362,0.34151,101320.0,101310.0,0.09991183]
[1762278689780,0.341,101320.0,101310.0,0.09991183]
[1762278690040,1.16370846,101320.0,101310.0,0.09991183]
[1762278690244,1.11353846,101320.0,101310.0,0.09991183]
[1762278690632,1.11252846,101320.0,101310.0,0.09991183]
[1762278690843,1.11303846,101320.0,101310.0,0.09991183]
[1762278691047,1.16369846,101320.0,101310.0,0.09991183]
[1762278691250,1.11303846,101320.0,101310.0,0.09991183]
[1762278691460,1.11252846,101320.0,101310.0,0.09991183]
[1762278691665,0.39218,101320.0,101310.0,0.09991183]
[1762278691864,1.16370846,101320.0,101310.0,0.09991183]
[1762278692492,0.341,101320.0,101310.0,0.25347183]
[1762278692717,0.001,101320.0,101310.0,0.29835183]
[1762278692944,0.001,101320.0,101310.0,0.4957657]
[1762278693380,0.001,101320.0,101310.0,0.29835183]
[1762278694338,0.001,101320.0,101310.0,0.29635183]
[1762278694532,1.15720846,101340.0,101310.0,0.5036334]
[1762278694732,0.43679,101340.0,101330.0,0.09776605]
[1762278694961,1.20882846,101340.0,101330.0,0.09776605]
[1762278695328,1.21882845,101340.0,101330.0,0.09776605]
[1762278696098,1.21982845,101340.0,101330.0,0.001]
[1762278697633,1.20982846,101340.0,101330.0,0.001]
[1762278697837,1.21982845,101340.0,101330.0,0.001]
[1762278698263,0.4383,101340.0,101330.0,0.001]
[1762278698483,1.20982846,101340.0,101330.0,0.001]
[1762278699130,1.21982845,101340.0,101330.0,0.001]
[1762278700240,1.45336616,101340.0,101330.0,0.001]
[1762278700454,1.45336616,101340.0,101310.0,0.09791183]
[1762278700455,1.12152845,101320.0,101310.0,0.09791183]
[1762278700670,1.12203845,101320.0,101310.0,0.09791183]
[1762278700885,1.17264845,101320.0,101310.0,0.09791183]
[1762278701331,1.17264845,101320.0,101310.0,0.00014578]
[1762278701967,1.17364845,101320.0,101310.0,0.00114578]
[1762278702435,1.54379573,101320.0,101310.0,0.00114578]
[1762278702829,0.97295786,101320.0,101310.0,0.00114578]
[1762278703295,0.96295787,101320.0,101310.0,0.00114578]
[1762278703720,0.39212,101320.0,101310.0,0.00114578]
[1762278703932,0.96295787,101320.0,101310.0,0.00114578]
[1762278704168,0.39212,101320.0,101310.0,0.00114578]
[1762278704382,0.341,101320.0,101310.0,0.15916578]
[1762278704596,0.001,101320.0,101310.0,0.15916578]
[1762278704809,0.67712786,101340.0,101310.0,0.15916578]
[1762278705026,0.66712787,101340.0,101330.0,0.09776605]
[1762278705480,0.66813787,101340.0,101330.0,0.09776605]
[1762278705691,1.00813787,101340.0,101330.0,0.09776605]
[1762278705936,0.66813787,101340.0,101330.0,0.09776605]
[1762278706137,1.00813787,101340.0,101330.0,0.09776605]
[1762278706359,0.67813786,101340.0,101310.0,0.19645183]
[1762278706570,0.62194787,101320.0,101310.0,0.14879183]
[1762278706755,0.96194787,101320.0,101310.0,0.14779183]
[1762278706957,0.96245787,101320.0,101310.0,0.14779183]
[1762278707105,0.96245787,101320.0,101310.0,0.10791183]
[1762278707305,0.96245787,101320.0,101310.0,0.09791183]
[1762278707306,0.39162,101320.0,101310.0,0.09791183]
[1762278707511,0.96194787,101320.0,101310.0,0.09791183]
[1762278707707,0.96394787,101320.0,101310.0,0.09891183]
[1762278707907,0.96445787,101320.0,101310.0,0.09891183]
[1762278708331,0.96594787,101320.0,101310.0,0.09891183]
[1762278708558,0.344,101320.0,101310.0,0.09891183]
[1762278709554,0.39512,101320.0,101310.0,0.09891183]
[1762278709759,0.34451,101320.0,101310.0,0.09891183]
[1762278709956,0.91534787,101320.0,101310.0,0.09891183]
[1762278710407,0.96595787,101320.0,101310.0,0.09891183]
[1762278711614,0.97595786,101320.0,101310.0,0.09891183]
[1762278712185,0.92534786,101320.0,101310.0,0.09891183]
[1762278712394,0.92483786,101320.0,101310.0,0.09891183]
[1762278712595,0.35399999,101320.0,101310.0,0.25707183]
[1762278712986,0.344,101320.0,101310.0,0.25707183]
[1762278714233,0.344,101320.0,101310.0,0.25711183]
[1762278715575,0.91483787,101320.0,101310.0,0.25711183]
[1762278715777,0.344,101320.0,101310.0,0.25711183]
[1762278715959,0.91483787,101320.0,101310.0,0.09895183]
[1762278716155,0.97456786,101320.0,101310.0,0.00118578]
[1762278716362,0.91483787,101320.0,101310.0,0.25489183]
[1762278716789,0.344,101320.0,101310.0,0.25489183]
[1762278717188,0.004,101320.0,101310.0,0.25489183]
[1762278719641,0.004,101320.0,101310.0,0.29977183]
[1762278719837,1.54276573,101320.0,101310.0,0.00118578]
[1762278720035,1.8709524,101320.0,101310.0,0.00118578]
[1762278720624,1.8689524,101320.0,101310.0,0.00118578]
[1762278721077,1.66955801,101320.0,101310.0,0.00318578]
[1762278721250,1.8669524,101320.0,101310.0,0.00318578]
[1762278721459,1.8679524,101320.0,101310.0,0.00418578]
[1762278721633,1.8679524,101320.0,101310.0,0.00118578]
[1762278722072,1.8919524,101320.0,101310.0,0.00118578]
[1762278722488,1.08872015,101320.0,101310.0,0.00018578]
[1762278722639,1.09872014,101320.0,101310.0,0.00018578]
[1762278722852,1.62182801,101320.0,101310.0,0.00318578]
[1762278723050,1.62082801,101320.0,101310.0,0.00018578]
[1762278723253,1.8679524,101320.0,101310.0,0.00018578]
[1762278723459,1.8689524,101320.0,101310.0,0.00118578]
[1762278723676,1.8699524,101320.0,101310.0,0.00118578]
[1762278724234,1.67255801,101320.0,101310.0,0.00118578]
[1762278724423,1.62332801,101320.0,101310.0,0.00118578]
[1762278724625,1.62282801,101320.0,101310.0,0.00118578]
[1762278724828,1.00490014,101320.0,101310.0,0.15665578]
[1762278725054,1.8228624,101320.0,101310.0,0.00118578]
[1762278725479,1.94143846,101320.0,101310.0,0.00118578]
[1762278725910,1.20171029,101310.0,101300.0,4e-05]
[1762278726119,1.32332631,101310.0,101300.0,0.000186]
[1762278726741,1.32332631,101310.0,101290.0,0.0002]
[1762278726742,1.11827122,101300.0,101290.0,0.0002]
[1762278726947,1.11832971,101270.0,101260.0,0.0002]
[1762278727159,1.21021971,101270.0,101260.0,0.0002]
[1762278727369,0.73684184,101270.0,101260.0,0.0002]
[1762278727566,1.42944576,101270.0,101260.0,0.0002]
[1762278727792,1.40544576,101270.0,101260.0,0.0002]
[1762278727996,1.4540044,101270.0,101260.0,0.0002]
[1762278729330,1.4540044,101270.0,101260.0,0.0022]
[1762278729532,1.9973113,101270.0,101260.0,0.0032]
[1762278729688,2.11588736,101270.0,101260.0,0.0012]
[1762278729890,2.0203113,101270.0,101260.0,0.0002]
[1762278730138,0.19751135,101260.0,101250.0,0.00342138]
[1762278730316,1.53366939,101260.0,101250.0,0.00342138]
[1762278731301,0.04618227,101230.0,101220.0,0.0002]
[1762278731506,1.09970014,101230.0,101220.0,0.00068361]
[1762278731926,1.09970014,101230.0,101220.0,0.00143597]
[1762278732515,0.48398227,101230.0,101220.0,0.00143597]
[1762278732725,0.00197,101230.0,101220.0,0.00343597]
[1762278732935,0.001,101230.0,101220.0,0.26395202]
[1762278733155,0.02471,101240.0,101220.0,0.26195202]
[1762278733360,0.10778999,101260.0,101230.0,0.37908449]
[1762278733561,0.10778999,101260.0,101250.0,0.09776605]
[1762278733562,0.44778999,101260.0,101250.0,0.09776605]
[1762278733770,0.05603999,101270.0,101250.0,0.09776605]
[1762278733980,0.04604,101270.0,101250.0,0.09776605]
[1762278734193,0.72277786,101280.0,101260.0,0.04894]
[1762278734194,0.10705999,101280.0,101260.0,0.04894]
[1762278734416,0.00999999,101290.0,101270.0,0.09776605]
[1762278734652,0.70282786,101300.0,101270.0,0.26051605]
[1762278734859,0.97688787,101280.0,101270.0,0.09776605]
[1762278735070,0.34,101280.0,101270.0,0.09776605]
[1762278735276,0.34097,101280.0,101270.0,0.09776605]
[1762278735484,1.01740786,101280.0,101270.0,0.09776605]
[1762278735903,1.01740786,101280.0,101270.0,0.10176605]
[1762278736109,1.01740786,101280.0,101270.0,0.09776605]
[1762278736528,1.01940786,101280.0,101270.0,0.09876605]
[1762278736748,1.01940786,101280.0,101270.0,0.09776605]
[1762278736749,0.002,101280.0,101270.0,0.09776605]
[1762278736951,0.06705,101280.0,101270.0,0.09776605]
[1762278737083,0.001,101280.0,101270.0,0.09776605]
[1762278737287,0.09757,101280.0,101270.0,0.09876605]
[1762278737633,0.67840786,101280.0,101270.0,0.09876605]
[1762278738060,0.67940786,101280.0,101270.0,0.10076605]
[1762278738482,0.67740786,101280.0,101270.0,0.09776605]
[1762278738693,0.67940786,101280.0,101270.0,0.10176605]
[1762278738895,0.67940786,101280.0,101270.0,0.09776605]
[1762278739087,0.00999999,101290.0,101270.0,0.26051605]
[1762278739291,0.34999999,101280.0,101270.0,0.26051605]
[1762278739520,0.92083786,101280.0,101270.0,0.10076605]
[1762278739677,0.92183786,101280.0,101270.0,0.10076605]
[1762278739879,0.92183786,101280.0,101270.0,0.19943605]
[1762278740095,0.92183786,101280.0,101270.0,0.16484605]
[1762278740297,0.92183786,101280.0,101270.0,0.26251605]
[1762278740863,0.91183787,101280.0,101270.0,0.26251605]
[1762278741015,0.341,101280.0,101270.0,0.26251605]
[1762278741360,0.35099999,101280.0,101270.0,0.26251605]
[1762278741566,0.001,101280.0,101270.0,0.26251605]
[1762278742364,0.57183787,101280.0,101270.0,0.26251605]
[1762278743085,0.001,101280.0,101270.0,0.26351605]
[1762278743683,0.001,101280.0,101270.0,0.26251605]
[1762278746260,0.05680546,101310.0,101280.0,0.19747235]
[1762278746261,0.00999999,101310.0,101280.0,0.19747235]
[1762278746466,0.58083786,101330.0,101300.0,0.20518605]
[1762278746777,0.58083786,101320.0,101310.0,0.09395]
[1762278746998,0.58083786,101320.0,101310.0,0.15577]
[1762278747373,0.92083786,101320.0,101310.0,0.15577]
[1762278747582,0.58083786,101320.0,101310.0,0.15577]
[1762278747817,0.92083786,101320.0,101310.0,0.06182]
[1762278748232,0.92083786,101320.0,101310.0,0.1561]
[1762278748453,0.91183787,101320.0,101310.0,0.1561]
[1762278748654,0.92183786,101320.0,101310.0,0.1551]
[1762278748874,0.91183787,101320.0,101310.0,0.1581]
[1762278749075,0.92283786,101320.0,101310.0,0.1581]
[1762278749934,0.92283786,101320.0,101310.0,0.003]
[1762278750431,1.8044524,101320.0,101310.0,0.003]
[1762278750654,1.53062801,101320.0,101310.0,0.003]
[1762278750842,0.38818227,101320.0,101310.0,0.15268]
[1762278750981,0.95902014,101320.0,101310.0,0.15268]
[1762278751177,0.95902014,101320.0,101310.0,0.15581]
[1762278751178,0.92383786,101320.0,101310.0,0.15581]
[1762278753013,0.35299999,101320.0,101310.0,0.15581]
[1762278754088,0.92383786,101320.0,101310.0,0.15581]
[1762278754745,0.35299999,101320.0,101310.0,0.15581]
[1762278754982,0.003,101320.0,101310.0,0.15581]
[1762278755397,0.003,101320.0,101310.0,0.29841605]
[1762278756694,0.00014587,101330.0,101310.0,0.29441605]
[1762278756898,0.00014587,101330.0,101320.0,0.14036]
[1762278757330,0.57098374,101330.0,101320.0,0.14036]
[1762278757547,0.58098373,101330.0,101320.0,0.14036]
[1762278758163,0.58298373,101330.0,101320.0,0.14136]
[1762278759679,0.58098373,101330.0,101320.0,0.14036]
[1762278760113,0.58198373,101330.0,101320.0,0.14136]
[1762278760542,0.77935864,101330.0,101320.0,0.03418]
[1762278760729,1.99222484,101330.0,101320.0,0.001]
[1762278761214,2.04209487,101330.0,101320.0,0.001]
[1762278761495,1.84471996,101330.0,101320.0,0.001]
[1762278761680,1.99222484,101330.0,101320.0,0.001]
[1762278762006,1.79484993,101330.0,101320.0,0.001]
[1762278762223,1.78484994,101330.0,101320.0,0.001]
[1762278762426,1.20490835,101330.0,101320.0,0.15744]
[1762278762629,1.20390835,101330.0,101320.0,0.15644]
[1762278762836,1.20490835,101330.0,101320.0,0.06187]
[1762278763662,1.20390835,101330.0,101320.0,0.15658]
[1762278764063,1.20490835,101330.0,101320.0,0.15858]
[1762278764540,1.19490836,101330.0,101320.0,0.15858]
[1762278764753,0.39598586,101330.0,101320.0,0.15858]
[1762278764994,0.35114586,101330.0,101320.0,0.15858]
[1762278765431,0.35114586,101330.0,101320.0,0.002]
[1762278765647,1.20638051,101330.0,101320.0,0.002]
[1762278765908,1.15986051,101330.0,101320.0,0.002]
[1762278766130,1.15986051,101330.0,101320.0,0.05639]
[1762278766807,1.06441739,101330.0,101320.0,0.002]
[1762278767044,0.86704248,101330.0,101320.0,0.002]
[1762278767261,1.06441739,101330.0,101320.0,0.002]
[1762278767463,1.18538739,101330.0,101320.0,0.002]
[1762278767762,1.52538739,101330.0,101320.0,0.002]
[1762278769050,1.32801248,101330.0,101320.0,0.002]
[1762278769255,1.20476248,101330.0,101320.0,0.15942]
[1762278769842,1.40213739,101330.0,101320.0,0.06291]
[1762278770150,1.54617996,101330.0,101320.0,0.002]
[1762278770482,1.55326918,101330.0,101320.0,0.002]
[1762278771729,1.64784524,101330.0,101320.0,0.002]
[1762278771931,0.00999999,101270.0,101250.0,0.04894]
[1762278772204,0.00999999,101270.0,101260.0,0.19566605]
[1762278772325,0.00999999,101270.0,101260.0,0.23617605]
[1762278772531,0.00999999,101270.0,101260.0,0.09776605]
[1762278772778,1.2652402,101270.0,101260.0,0.09776605]
[1762278772981,0.34999999,101260.0,101240.0,0.09801678]
[1762278773179,0.34999999,101260.0,101240.0,0.09816265]
[1762278773180,1.2184002,101260.0,101240.0,0.09816265]
[1762278773397,1.1227402,101260.0,101250.0,0.001]
[1762278773588,1.1227402,101260.0,101240.0,0.09816265]
[1762278773760,0.06487,101250.0,101240.0,0.09816265]
[1762278773942,0.44676999,101250.0,101240.0,0.09816265]
[1762278774561,0.44676999,101250.0,101240.0,0.0003966]
[1762278774562,1.2195102,101250.0,101240.0,0.0003966]
[1762278775730,0.44676999,101250.0,101240.0,0.0003966]
[1762278775953,0.34,101250.0,101240.0,0.0003966]
[1762278776133,0.34,101250.0,101240.0,0.24761265]
[1762278776134,0.341,101250.0,101240.0,0.24761265]
[1762278776476,0.341,101250.0,101240.0,0.44516302]
[1762278776693,0.341,101250.0,101240.0,0.24761265]
[1762278776895,0.001,101250.0,101240.0,0.44516302]
[1762278777096,0.001,101250.0,101240.0,0.24761265]
[1762278777297,0.001,101250.0,101240.0,0.44516302]
[1762278777724,0.001,101250.0,101240.0,0.24761265]
[1762278777929,0.001,101250.0,101240.0,0.29245265]
[1762278778127,0.34999999,101260.0,101240.0,0.29145265]
[1762278778591,0.12690626,101260.0,101240.0,0.14400265]
[1762278778799,0.91524021,101270.0,101240.0,0.24190265]
[1762278779131,0.91524021,101270.0,101260.0,0.09776605]
[1762278779132,0.1425,101270.0,101260.0,0.09776605]
[1762278779403,0.14251,101270.0,101260.0,0.09776605]
[1762278780685,1.25525021,101270.0,101260.0,0.09776605]
[1762278781157,1.25525021,101270.0,101240.0,0.14300265]
[1762278781158,0.34,101260.0,101240.0,0.14300265]
[1762278781347,1.20791021,101260.0,101240.0,0.14300265]
[1762278781562,0.09613,101250.0,101240.0,0.09816265]
[1762278781734,0.09613,101250.0,101240.0,0.10316265]
[1762278781735,0.10049376,101250.0,101240.0,0.10316265]
[1762278781937,0.87323397,101250.0,101240.0,0.10316265]
[1762278782137,0.87323397,101250.0,101240.0,0.0003966]
[1762278782138,1.24505249,101250.0,101240.0,0.0003966]
[1762278782507,1.24505249,101250.0,101240.0,0.0013966]
[1762278782915,0.34095,101250.0,101240.0,0.0003966]
[1762278783124,0.341,101250.0,101240.0,0.0013966]
[1762278783328,0.341,101250.0,101240.0,0.1498866]
[1762278783545,0.1425,101270.0,101240.0,0.24665265]
[1762278783770,0.4825,101270.0,101260.0,0.09776605]
[1762278783996,0.38638,101270.0,101260.0,0.09776605]
[1762278784207,0.38638,101270.0,101260.0,0.11988605]
[1762278784417,0.12158,101290.0,101260.0,0.27940605]
[1762278784645,0.02546,101290.0,101280.0,0.09776605]
[1762278784857,0.46109,101290.0,101280.0,0.09776605]
[1762278785249,0.89383021,101290.0,101260.0,0.11988605]
[1762278785450,0.43563,101280.0,101260.0,0.09776605]
[1762278785660,0.43563,101280.0,101260.0,0.09876605]
[1762278785661,0.38737,101270.0,101260.0,0.09876605]
[1762278785862,0.34,101270.0,101260.0,0.09891192]
[1762278786062,0.34,101270.0,101260.0,0.15953192]
[1762278786281,0.34,101270.0,101260.0,0.25273192]
[1762278786686,0.46061,101290.0,101260.0,0.25273192]
[1762278786887,0.46061,101290.0,101280.0,0.09776605]
[1762278787290,1.23335021,101290.0,101280.0,0.09776605]
[1762278787497,1.23335021,101290.0,101260.0,0.09791192]
[1762278787710,0.34,101270.0,101260.0,0.09791192]
[1762278787853,0.341,101270.0,101260.0,0.09991192]
[1762278788059,0.341,101270.0,101260.0,0.25350192]
[1762278788281,0.34,101270.0,101260.0,0.25150192]
[1762278788493,0.02546,101290.0,101260.0,0.25150192]
[1762278788713,0.12161,101290.0,101280.0,0.09976605]
[1762278788940,0.46061,101290.0,101280.0,0.09776605]
[1762278789601,0.36546,101290.0,101280.0,0.09776605]
[1762278789828,0.36546,101290.0,101280.0,0.09976605]
[1762278790032,0.36646,101290.0,101280.0,0.09976605]
[1762278790480,0.36741,101290.0,101280.0,0.09976605]
[1762278790709,0.36646,101290.0,101280.0,0.09976605]
[1762278791372,0.36834,101290.0,101280.0,0.09976605]
[1762278792733,0.341,101290.0,101280.0,0.15072605]
[1762278792931,0.341,101290.0,101280.0,0.24862605]
[1762278793148,0.001,101290.0,101280.0,0.50068214]
[1762278793359,0.001,101290.0,101280.0,1.27342235]
[1762278793781,0.001,101290.0,101280.0,0.30320979]
[1762278793981,0.001,101290.0,101280.0,0.29342605]
[1762278794190,0.001,101290.0,101280.0,0.19552605]
[1762278794390,0.34,101300.0,101280.0,0.19352605]
[1762278794590,0.34,101300.0,101290.0,0.14241]
[1762278794793,0.34,101300.0,101280.0,0.34946979]
[1762278795025,0.34,101300.0,101280.0,0.34546979]
[1762278795312,0.43588,101300.0,101280.0,0.24869979]
[1762278795471,0.34,101300.0,101290.0,0.10381]
[1762278795674,0.34,101300.0,101280.0,0.29563979]
[1762278796125,0.341,101300.0,101280.0,0.29763979]
[1762278796330,0.34,101300.0,101280.0,0.29563979]
[1762278796763,0.35174967,101320.0,101290.0,0.15952]
[1762278796967,0.91556021,101330.0,101310.0,0.09776605]
[1762278797381,0.09515,101320.0,101310.0,0.09776605]
[1762278797564,0.10780488,101320.0,101310.0,0.09776605]
[1762278797764,1.11274021,101320.0,101310.0,0.09776605]
[1762278798005,0.34,101320.0,101310.0,0.09776605]
[1762278798219,0.34,101320.0,101310.0,0.25843192]
[1762278798554,0.34,101320.0,101310.0,0.25743192]
[1762278798702,0.34,101320.0,101310.0,0.30282192]
[1762278798902,0.341,101320.0,101310.0,0.20692192]
[1762278799161,0.341,101320.0,101310.0,0.30482192]
[1762278799363,0.001,101320.0,101310.0,0.30482192]
[1762278800625,0.77274021,101320.0,101310.0,0.09791192]
[1762278801034,0.77374021,101320.0,101310.0,0.09991192]
[1762278801245,0.77374021,101320.0,101310.0,0.00214587]
[1762278801450,1.11274021,101320.0,101310.0,0.00014587]
[1762278801657,1.11274021,101320.0,101310.0,0.00214587]
[1762278801658,1.3111346,101320.0,101310.0,0.00214587]
[1762278801856,1.11374021,101320.0,101310.0,0.00214587]
[1762278802060,1.11274021,101320.0,101310.0,0.00014587]
[1762278802513,1.34831688,101320.0,101310.0,0.00114587]
[1762278803157,1.14892249,101320.0,101310.0,0.00014587]
[1762278804192,1.34631688,101320.0,101310.0,0.00014587]
[1762278804620,1.14992249,101320.0,101310.0,0.00314587]
[1762278805058,1.39211688,101320.0,101310.0,0.00314587]
[1762278805723,0.34,101290.0,101280.0,0.09776605]
[1762278805923,1.18516021,101290.0,101280.0,0.09776605]
[1762278806136,1.18686021,101290.0,101260.0,0.09776605]
[1762278806342,0.04828,101270.0,101260.0,0.00014538]
[1762278806550,1.16272021,101270.0,101260.0,0.00014538]
[1762278806969,1.19890249,101270.0,101260.0,0.00014538]
[1762278807591,1.39639434,101270.0,101260.0,0.00014538]
[1762278807792,1.19890249,101270.0,101260.0,0.00014538]
[1762278808057,1.39639434,101270.0,101260.0,0.00014538]
[1762278809095,1.54084043,101270.0,101260.0,0.00014538]
[1762278809308,1.31027107,101250.0,101240.0,0.00025073]
[1762278809513,1.44132916,101250.0,101240.0,0.00025073]
[1762278811255,0.47105809,101250.0,101240.0,0.00025073]
[1762278811465,1.26312676,101250.0,101240.0,0.00025073]
[1762278811695,1.2440983,101250.0,101240.0,0.00125073]
[1762278811915,1.1958183,101250.0,101240.0,0.15887073]
[1762278812121,1.1958183,101250.0,101240.0,0.00125073]
[1762278812122,1.2199583,101250.0,101240.0,0.00125073]
[1762278812321,1.41918916,101250.0,101240.0,0.00125073]
[1762278812523,1.2196583,101250.0,101240.0,0.00025073]
[1762278812737,1.2179583,101250.0,101240.0,0.00029073]
[1762278813109,0.42107809,101250.0,101240.0,0.15791073]
[1762278813270,0.08107809,101250.0,101240.0,0.15791073]
[1762278813475,9.581e-05,101250.0,101240.0,0.15791073]
[1762278813726,9.581e-05,101250.0,101240.0,0.06107073]
[1762278813896,1.15338206,101250.0,101240.0,0.06107073]
[1762278814099,1.1500183,101250.0,101240.0,0.15891073]
[1762278814302,0.37727809,101250.0,101240.0,0.15891073]
[1762278814534,0.00109581,101250.0,101240.0,0.15891073]
[1762278814877,0.02414,101290.0,101240.0,0.15891073]
[1762278815084,0.82190397,101280.0,101260.0,0.15854605]
[1762278815293,0.86113554,101280.0,101270.0,0.15762]
[1762278815593,0.8638153,101280.0,101260.0,0.19460605]
[1762278815799,0.005,101250.0,101240.0,0.09905678]
[1762278815962,0.005,101250.0,101240.0,0.19589678]
[1762278816176,0.005,101250.0,101240.0,0.09905678]
[1762278816566,0.005,101250.0,101240.0,0.15983678]
[1762278816797,0.005,101250.0,101240.0,0.25667678]
[1762278817169,0.04938,101270.0,101240.0,0.15883678]
[1762278817389,0.04938,101270.0,101260.0,0.09776605]
[1762278817734,0.38938,101270.0,101260.0,0.09776605]
[1762278817913,0.39108,101270.0,101240.0,0.09805678]
[1762278818109,0.00049,101250.0,101240.0,0.09805678]
[1762278818659,0.34049,101250.0,101240.0,0.09805678]
[1762278819021,0.34,101250.0,101240.0,0.09805678]
[1762278819222,0.86692021,101270.0,101240.0,0.09805678]
[1762278819439,0.34,101260.0,101240.0,0.09805678]
[1762278819641,0.09418,101270.0,101240.0,0.09805678]
[1762278819790,0.09418,101270.0,101240.0,0.39244582]
[1762278819991,1.16212021,101280.0,101260.0,0.09776605]
[1762278820193,0.86692021,101280.0,101260.0,0.09776605]
[1762278820455,0.0017,101270.0,101260.0,0.09776605]
[1762278820679,0.3417,101270.0,101240.0,0.19489678]
[1762278820884,0.77323021,101250.0,101240.0,0.09805678]
[1762278821059,0.77323021,101250.0,101240.0,0.00329073]
[1762278821203,0.77323021,101250.0,101240.0,0.00029073]
[1762278821406,1.19879249,101250.0,101240.0,0.00029073]
[1762278822256,0.34049,101250.0,101240.0,0.00029073]
[1762278822564,0.34049,101250.0,101240.0,0.00129073]
[1762278822565,0.39287,101250.0,101240.0,0.00129073]
[1762278823365,0.34349,101250.0,101240.0,0.00129073]
[1762278823602,0.34049,101250.0,101240.0,0.00029073]
[1762278824028,0.39287,101250.0,101240.0,0.00129073]
[1762278824233,1.16561021,101250.0,101240.0,0.00129073]
[1762278824419,1.00070254,101250.0,101240.0,0.00129073]
[1762278824841,0.34349,101250.0,101240.0,0.00129073]
[1762278825040,0.96452026,101250.0,101240.0,0.00129073]
[1762278826006,1.00070254,101250.0,101240.0,0.00129073]
[1762278826612,1.1982334,101250.0,101240.0,0.00129073]
[1762278826998,1.00070254,101250.0,101240.0,0.00129073]
[1762278827432,1.00070254,101250.0,101220.0,0.0002]
[1762278827433,0.76922015,101230.0,101220.0,0.0002]